fUSD/lending_fUSD_20250125
["ID","MTS","AMOUNT","RATE_DAILY","PERIOD"]
[350291041,1737772242973,-861.0,0.00019041,2]
[350291042,1737772242983,-604.87,0.00019041,2]
[350291043,1737772242992,-603.65,0.00019041,2]
[350291044,1737772243001,-515.15,0.00019041,2]
[350291045,1737772243011,-783.48,0.00019041,2]
[350291046,1737772243020,-544.27,0.00019041,2]
[350291047,1737772243030,-1254.97,0.00019041,2]
[350291048,1737772243040,-1616.37,0.00019041,2]
[350291049,1737772243050,-823.7,0.00019041,2]
[350291050,1737772243059,-594.7,0.00019041,2]
[350291051,1737772243069,-157.723506,0.00019103,2]
[350291052,1737772243078,-260.16055571,0.00019141,2]
[350291053,1737772243087,-151.567143,0.00019151,2]
[350291054,1737772243096,-761.15,0.00019178,2]
[350291055,1737772243106,-861.0,0.00019178,2]
[350291056,1737772243127,-604.87,0.00019178,2]
[350291057,1737772243141,-603.65,0.00019178,2]
[350291058,1737772243150,-515.15,0.00019178,2]
[350291059,1737772243160,-783.48,0.00019178,2]
[350291060,1737772243169,-544.27,0.00019178,2]
[350291061,1737772243179,-1254.97,0.00019178,2]
[350291062,1737772243188,-1616.37,0.00019178,2]
[350291063,1737772243198,-823.7,0.00019178,2]
[350291064,1737772243207,-594.7,0.00019178,2]
[350291065,1737772243218,-157.723506,0.0001924,2]
[350291066,1737772243227,-260.16055571,0.00019314,2]
[350291067,1737772243236,-761.15,0.00019315,2]
[350291068,1737772243245,-861.0,0.00019315,2]
[350291069,1737772243255,-604.87,0.00019315,2]
[350291070,1737772243264,-603.65,0.00019315,2]
[350291071,1737772243273,-515.15,0.00019315,2]
[350291072,1737772243283,-783.48,0.00019315,2]
[350291073,1737772243292,-544.27,0.00019315,2]
[350291074,1737772243301,-1254.97,0.00019315,2]
[350291075,1737772243310,-1616.37,0.00019315,2]
[350291076,1737772243320,-823.7,0.00019315,2]
[350291077,1737772243330,-594.7,0.00019315,2]
[350291078,1737772243339,-151.567143,0.0001932,2]
[350291079,1737772243348,-381.70649254,0.00019328,2]
[350291080,1737772243357,-12813.36094287,0.00019328,2]
[350291081,1737772243367,-1054.78533811,0.00019361,2]
[350291082,1737772243376,-150.0,0.0001937,2]
[350291083,1737772243385,-559.54644052,0.00019371,2]
[350291084,1737772243394,-1054.78533811,0.00019371,2]
[350291085,1737772243403,-200.0,0.00019376,2]
[350291086,1737772243413,-200.0,0.00019378,2]
[350291087,1737772243422,-200.0,0.00019396,2]
[350291088,1737772243431,-200.0,0.00019397,2]
[350291089,1737772243440,-2514.03,0.000194,2]
[350291090,1737772243450,-200.0,0.00019404,2]
[350291091,1737772243459,-559.54644052,0.00019419,2]
[350291092,1737772243469,-1054.78533811,0.00019422,2]
[350291093,1737772243478,-200.0,0.00019426,2]
[350291094,1737772243487,-354.52522077,0.00019428,2]
[350291095,1737772243498,-559.54644052,0.00019432,2]
[350291096,1737772243507,-354.52522077,0.00019446,2]
[350291097,1737772243516,-559.54644052,0.00019447,2]
[350291098,1737772243526,-761.15,0.00019452,2]
[350291099,1737772243535,-861.0,0.00019452,2]
[350291100,1737772243546,-604.87,0.00019452,2]
[350291101,1737772243555,-603.65,0.00019452,2]
[350291102,1737772243564,-515.15,0.00019452,2]
[350291103,1737772243574,-783.48,0.00019452,2]
[350291104,1737772243583,-544.27,0.00019452,2]
[350291105,1737772243593,-1254.97,0.00019452,2]
[350291106,1737772243602,-1616.37,0.00019452,2]
[350291107,1737772243612,-823.7,0.00019452,2]
[350291108,1737772243621,-594.7,0.00019452,2]
[350291109,1737772243630,-354.52522077,0.00019453,2]
[350291110,1737772243640,-200.0,0.00019456,2]
[350291111,1737772243649,-559.54644052,0.00019461,2]
[350291112,1737772243658,-200.0,0.00019475,2]
[350291113,1737772243667,-1054.78533811,0.00019477,2]
[350291114,1737772243676,-354.52522077,0.0001948,2]
[350291115,1737772243685,-260.16055571,0.00019486,2]
[350291116,1737772243695,-354.52522077,0.00019489,2]
[350291117,1737772243704,-1054.78533811,0.0001949,2]
[350291118,1737772243713,-154.729177,0.00019514,2]
[350291119,1737772243723,-154.729178,0.00019514,2]
[350291120,1737772243733,-160.165086,0.00019514,2]
[350291121,1737772243859,-157.723506,0.00019514,2]
[350291122,1737772243869,-761.20613129,0.00019589,2]
[350291123,1737772243879,-861.12320969,0.00019589,2]
[350291124,1737772243889,-604.89765814,0.00019589,2]
[350291125,1737772243898,-603.82895514,0.00019589,2]
[350291126,1737772243908,-515.2380022,0.00019589,2]
[350291127,1737772243918,-783.69490231,0.00019589,2]
[350291128,1737772243927,-544.49096015,0.00019589,2]
[350291129,1737772243938,-1255.17206699,0.00019589,2]
[350291130,1737772243947,-1616.55108785,0.00019589,2]
[350291131,1737772243956,-823.74161526,0.00019589,2]
[350291132,1737772243966,-594.86956538,0.00019589,2]
[350291133,1737772243975,-151.567143,0.00019651,2]
[350291134,1737772243985,-260.16055571,0.00019659,2]
[350291135,1737772243995,-500.0,0.00019685,2]
[350291136,1737772244004,-500.0,0.00019685,2]
[350291137,1737772244012,-500.0,0.00019685,2]
[350291138,1737772244022,-500.0,0.00019685,2]
[350291139,1737772244031,-500.0,0.00019685,2]
[350291140,1737772244040,-500.0,0.00019685,2]
[350291141,1737772244050,-500.0,0.00019685,2]
[350291142,1737772244059,-580.35939898,0.00019685,2]
[350291143,1737772244069,-440.0,0.00019685,2]
[350291144,1737772244079,-304.59812847,0.00019685,2]
[350291145,1737772244088,-500.0,0.00019685,2]
[350291146,1737772244097,-500.0,0.00019685,2]
[350291147,1737772244106,-500.0,0.00019685,2]
[350291148,1737772244115,-500.0,0.00019685,2]
[350291149,1737772244125,-500.0,0.00019685,2]
[350291150,1737772244134,-500.0,0.00019685,2]
[350291151,1737772244143,-500.0,0.00019685,2]
[350291152,1737772244152,-500.0,0.00019685,2]
[350291153,1737772244161,-500.0,0.00019685,2]
[350291154,1737772244170,-500.0,0.00019685,2]
[350291155,1737772244179,-500.0,0.00019685,2]
[350291156,1737772244189,-500.0,0.00019685,2]
[350291157,1737772244198,-500.0,0.00019685,2]
[350291158,1737772244207,-500.0,0.00019685,2]
[350291159,1737772244216,-500.0,0.00019685,2]
[350291160,1737772244225,-40012.92276854,0.000198,2]
[350291161,1737772244234,-1039.43644635,0.00019807,2]
[350291162,1737772244243,-1113.81667322,0.00019807,2]
[350291163,1737772244252,-999.8732036,0.00019807,2]
[350291164,1737772244261,-500.0,0.00019822,2]
[350291165,1737772244270,-500.0,0.00019822,2]
[350291166,1737772244279,-500.0,0.00019822,2]
[350291167,1737772244288,-500.0,0.00019822,2]
[350291168,1737772244298,-500.0,0.00019822,2]
[350291169,1737772244307,-500.0,0.00019822,2]
[350291170,1737772244315,-260.16055571,0.00019831,2]
[350291171,1737772244324,-173.87,0.00019866,2]
[350291172,1737772244333,-74968.61728753,0.0001987,2]
[350291173,1737772244343,-8331.38,0.00019874,2]
[350291174,1737772244352,-1852.06,0.00019877,2]
[350291175,1737772244361,-465.2,0.000199,2]
[350291176,1737772244371,-150.55560137,0.000199,2]
[350291177,1737772244380,-14685.67417707,0.000199,2]
[350291178,1737772244389,-1000.0,0.00019904,2]
[350291179,1737772244399,-250.0,0.00019918,2]
[350291180,1737772244408,-157.723506,0.00019925,2]
[350291181,1737772244417,-2855.2557852,0.00019987,3]
[350291182,1737772244427,-51354.27028431,0.0002,2]
[350291183,1737772244436,-16530.09743692,0.0002,7]
[350291184,1737772244446,-251.25203628,0.0002,2]
[350291185,1737772244455,-241.35122177,0.0002,2]
[350291186,1737772244465,-160.90081451,0.0002,2]
[350291187,1737772244474,-1520374.06526084,0.0002,2]
[350291188,1737772244483,-633.83675568,0.0002,2]
[350291189,1737772244494,-814.08910062,0.0002,2]
[350291190,1737772244503,-260.16055571,0.00020003,2]
[350291191,1737772244513,-200.0,0.00020032,2]
[350291192,1737772244522,-200.0,0.00020032,2]
[350291193,1737772244531,-200.0,0.00020032,2]
[350291194,1737772244540,-200.0,0.00020032,2]
[350291195,1737772244550,-200.0,0.00020032,2]
[350291196,1737772244559,-200.0,0.00020032,2]
[350291197,1737772244567,-200.0,0.00020032,2]
[350291198,1737772244576,-200.0,0.00020032,2]
[350291199,1737772244585,-200.0,0.00020032,2]
[350291200,1737772244594,-200.0,0.00020032,2]
[350291201,1737772244603,-200.0,0.00020032,2]
[350291202,1737772244612,-200.0,0.00020032,2]
[350291203,1737772244621,-200.0,0.00020032,2]
[350291204,1737772244629,-200.0,0.00020032,2]
[350291205,1737772244638,-200.0,0.00020032,2]
[350291206,1737772244647,-200.0,0.00020032,2]
[350291207,1737772244656,-200.0,0.00020032,2]
[350291208,1737772244665,-200.0,0.00020032,2]
[350291209,1737772244674,-200.0,0.00020032,2]
[350291210,1737772244683,-197.0,0.00020032,2]
[350291211,1737772244693,-20969.67,0.00020041,2]
[350291212,1737772244702,-160.814046,0.00020062,2]
[350291213,1737772244711,-151.567143,0.00020062,2]
[350291214,1737772244721,-1090.686,0.00020096,2]
[350291215,1737772244731,-260.16055571,0.00020176,2]
[350291216,1737772244743,-2082.0,0.000202,2]
[350291217,1737772244752,-500.0,0.00020233,2]
[350291218,1737772244762,-500.0,0.00020233,2]
[350291219,1737772244771,-528.80661835,0.00020233,2]
[350291220,1737772244781,-517.94709855,0.00020233,2]
[350291221,1737772244790,-500.0,0.00020233,2]
[350291222,1737772244800,-508.20286323,0.00020233,2]
[350291223,1737772244809,-500.0,0.00020233,2]
[350291224,1737772244818,-501.1719,0.00020287,2]
[350291225,1737772244829,-19300.05280664,0.00020334,3]
[350291226,1737772244838,-157.723506,0.00020336,2]
[350291227,1737772244847,-516.79,0.00020346,2]
[350291228,1737772244856,-260.16055571,0.00020348,2]
[350291229,1737772244866,-164.63,0.00020355,30]
[350291230,1737772244875,-187.64994237,0.00020355,2]
[350291231,1737772244884,-500.0,0.00020356,2]
[350291232,1737772244894,-500.0,0.0002037,2]
[350291233,1737772244903,-1609.567,0.00020387,2]
[350291234,1737772244912,-350.0,0.00020466,2]
[350291235,1737772244921,-151.567143,0.00020473,2]
[350291236,1737772244931,-2110.0,0.00020505,2]
[350291237,1737772244941,-523.94573386,0.00020507,2]
[350291238,1737772244951,-260.16055571,0.00020521,2]
[350291239,1737772244961,-1274.81,0.00020546,2]
[350291240,1737772244972,-637.0,0.00020546,2]
[350291241,1737772244982,-569.255,0.00020546,2]
[350291242,1737772244993,-1109.926,0.00020546,2]
[350291243,1737772245002,-1871.454,0.00020546,2]
[350291244,1737772245012,-20449.32,0.00020548,2]
[350291245,1737772245022,-260.16055571,0.00020693,2]
[350291246,1737772245031,-20155.00711789,0.000207,2]
[350291247,1737772245041,-500.0,0.00020724,2]
[350291248,1737772245051,-502.26027206,0.00020724,2]
[350291249,1737772245061,-301.70050738,0.00020724,2]
[350291250,1737772245070,-500.0,0.00020724,2]
[350291251,1737772245079,-500.0,0.00020724,2]
[350291252,1737772245089,-151.567143,0.00020747,2]
[350291253,1737772245098,-157.723506,0.00020747,2]
[350291254,1737772245107,-173.87,0.00020758,2]
[350291255,1737772245116,-2514.03,0.000208,2]
[350291256,1737772245126,-377.7764198,0.00020861,2]
[350291257,1737772245135,-260.16055571,0.00020866,2]
[350291258,1737772245145,-156008.11320245,0.000209,2]
[350291259,1737772245154,-2747.50209909,0.000209,2]
[350291260,1737772245163,-84238.50328188,0.00020999,5]
[350291261,1737772245172,-9161.64841846,0.00021,2]
[350291262,1737772245182,-2110.0,0.00021005,2]
[350291263,1737772245191,-450.0,0.00021014,2]
[350291264,1737772245201,-260.16055571,0.00021038,2]
[350291265,1737772245211,-3820.13146729,0.00021066,2]
[350291266,1737772245220,-3820.13146719,0.00021066,2]
[350291267,1737772245229,-721.3032,0.00021082,2]
[350291268,1737772245239,-246.34,0.00021113,2]
[350291269,1737772245248,-246.54,0.00021113,2]
[350291270,1737772245257,-249.47,0.00021113,2]
[350291272,1737772245266,-151.567143,0.00021158,2]
[350291273,1737772245276,-157.723506,0.00021158,2]
[350291274,1737772245285,-500.0,0.00021182,2]
[350291275,1737772245295,-500.0,0.00021182,2]
[350291276,1737772245305,-500.0,0.00021182,2]
[350291277,1737772245315,-500.0,0.00021182,2]
[350291278,1737772245324,-478.0,0.00021182,2]
[350291279,1737772245334,-500.0,0.00021182,2]
[350291280,1737772245343,-304.45187077,0.00021182,2]
[350291281,1737772245353,-500.0,0.00021182,2]
[350291282,1737772245363,-500.0,0.00021182,2]
[350291284,1737772245372,-500.0,0.00021182,2]
[350291286,1737772245382,-500.0,0.00021182,2]
[350291288,1737772245391,-500.0,0.00021182,2]
[350291290,1737772245401,-521.22097818,0.00021182,2]
[350291292,1737772245410,-500.0,0.00021182,2]
[350291294,1737772245419,-500.0,0.00021182,2]
[350291295,1737772245428,-500.0,0.00021182,2]
[350291297,1737772245437,-500.0,0.00021182,2]
[350291299,1737772245447,-566.41218512,0.00021182,2]
[350291300,1737772245456,-500.0,0.00021182,2]
[350291301,1737772245465,-500.0,0.00021182,2]
[350291302,1737772245474,-500.0,0.00021182,2]
[350291303,1737772245483,-500.0,0.00021182,2]
[350291304,1737772245492,-500.0,0.00021182,2]
[350291305,1737772245501,-500.0,0.00021182,2]
[350291306,1737772245510,-500.0,0.00021182,2]
[350291307,1737772245519,-500.0,0.00021182,2]
[350291308,1737772245528,-260.16055571,0.0002121,2]
[350291309,1737772245537,-178239.12303326,0.0002122,2]
[350291310,1737772245546,-31534.22245389,0.000213,2]
[350291311,1737772245557,-303.04185885,0.00021319,2]
[350291312,1737772245566,-1099.22020947,0.00021364,2]
[350291313,1737772245575,-1116.18128237,0.00021373,2]
[350291314,1737772245584,-260.16055571,0.00021383,2]
[350291315,1737772245593,-251.02,0.00021387,2]
[350291316,1737772245602,-1587664.64557042,0.000214,2]
[350291317,1737772245611,-10359.0,0.000214,2]
[350291318,1737772245620,-8638.88607841,0.00021459,2]
[350291319,1737772245629,-2566.74124023,0.000215,2]
[350291320,1737772245638,-2110.0,0.00021505,2]
[350291321,1737772245648,-4498.87687619,0.0002152,2]
[350291322,1737772245657,-260.16055571,0.00021555,2]
[350291323,1737772245666,-971.90001337,0.0002156,2]
[350291324,1737772245675,-550.0,0.00021562,2]
[350291325,1737772245684,-151.567143,0.00021569,2]
[350291326,1737772245693,-157.723506,0.00021569,2]
[350291327,1737772245702,-7246.37612033,0.000217,2]
[350291328,1737772245711,-260.16055571,0.00021728,3]
[350291329,1737772245720,-1018.8361527,0.00021729,2]
[350291330,1737772245730,-1296.28985866,0.00021786,2]
[350291331,1737772245742,-174.16269916,0.00021789,2]
[350291332,1737772245751,-150.0,0.00021793,2]
[350291333,1737772245761,-1125.0,0.000218,7]
[350291334,1737772245771,-459.25332563,0.000218,2]
[350291335,1737772245781,-21210.71984246,0.000218,2]
[350291336,1737772245790,-4787.16566744,0.000218,2]
[350291337,1737772245800,-5434.0,0.000218,2]
[350291338,1737772245810,-150.0,0.00021849,2]
[350291339,1737772245820,-150.0,0.00021853,2]
[350291340,1737772245829,-150.0,0.00021877,2]
[350291341,1737772245838,-150.0,0.00021883,2]
[350291342,1737772245847,-150.0,0.00021884,2]
[350291343,1737772245856,-150.0,0.00021887,2]
[350291344,1737772245865,-150.66,0.00021887,2]
[350291345,1737772245875,-2002.5837,0.0002189,2]
[350291346,1737772245884,-2000.0,0.0002189,2]
[350291347,1737772245893,-5000.0,0.00021898,2]
[350291348,1737772245903,-500.0,0.00021899,2]
[350291350,1737772245912,-500.0,0.00021899,2]
[350291352,1737772245921,-500.0,0.00021899,2]
[350291354,1737772245931,-500.0,0.00021899,2]
[350291356,1737772245940,-500.0,0.00021899,2]
[350291358,1737772245950,-500.0,0.00021899,2]
[350291359,1737772245959,-500.0,0.00021899,2]
[350291361,1737772245968,-500.0,0.00021899,2]
[350291363,1737772245977,-500.0,0.00021899,2]
[350291365,1737772245987,-644.74,0.00021899,2]
[350291367,1737772245996,-503.58,0.00021899,2]
[350291369,1737772246005,-1020.92,0.00021899,2]
[350291371,1737772246014,-500.0,0.00021899,2]
[350291373,1737772246023,-500.0,0.00021899,2]
[350291375,1737772246032,-500.0,0.00021899,2]
[350291377,1737772246041,-1065.88,0.00021899,2]
[350291379,1737772246050,-1310.11,0.00021899,2]
[350291381,1737772246060,-1361.18,0.00021899,2]
[350291383,1737772246069,-500.0,0.00021899,2]
[350291385,1737772246078,-500.0,0.00021899,2]
[350291387,1737772246087,-500.0,0.00021899,2]
[350291389,1737772246097,-632.77,0.00021899,2]
[350291391,1737772246106,-712.33,0.00021899,2]
[350291393,1737772246114,-500.0,0.00021899,2]
[350291395,1737772246123,-500.0,0.00021899,2]
[350291397,1737772246132,-558.5,0.00021899,2]
[350291399,1737772246141,-500.0,0.00021899,2]
[350291401,1737772246150,-500.0,0.00021899,2]
[350291403,1737772246159,-500.0,0.00021899,2]
[350291405,1737772246169,-500.0,0.00021899,2]
[350291407,1737772246178,-500.0,0.00021899,2]
[350291409,1737772246187,-500.0,0.00021899,2]
[350291411,1737772246196,-500.0,0.00021899,2]
[350291413,1737772246205,-500.0,0.00021899,2]
[350291415,1737772246214,-500.0,0.00021899,2]
[350291417,1737772246223,-500.0,0.00021899,2]
[350291419,1737772246232,-500.0,0.00021899,2]
[350291421,1737772246241,-500.0,0.00021899,2]
[350291423,1737772246250,-500.0,0.00021899,2]
[350291424,1737772246259,-542.14079023,0.00021899,2]
[350291426,1737772246269,-500.0,0.00021899,2]
[350291428,1737772246277,-804.95,0.00021899,2]
[350291430,1737772246286,-500.0,0.00021899,2]
[350291432,1737772246295,-645.46,0.00021899,2]
[350291434,1737772246305,-500.0,0.00021899,2]
[350291436,1737772246314,-500.0,0.00021899,2]
[350291438,1737772246324,-1061.84,0.00021899,2]
[350291440,1737772246332,-500.0,0.00021899,2]
[350291442,1737772246341,-511.38,0.00021899,2]
[350291444,1737772246350,-956.78,0.00021899,2]
[350291446,1737772246359,-500.0,0.00021899,2]
[350291448,1737772246369,-500.0,0.00021899,2]
[350291450,1737772246378,-500.0,0.00021899,2]
[350291452,1737772246388,-500.0,0.00021899,2]
[350291454,1737772246397,-3311.85,0.00021899,2]
[350291456,1737772246406,-860.54,0.00021899,2]
[350291458,1737772246416,-500.0,0.00021899,2]
[350291460,1737772246426,-500.0,0.00021899,2]
[350291462,1737772246435,-40350.8301,0.000219,2]
[350291464,1737772246444,-244.47235882,0.000219,2]
[350291466,1737772246452,-260.16055571,0.000219,3]
[350291468,1737772246461,-892.83411436,0.000219,2]
[350291469,1737772246471,-150.0,0.00021918,2]
[350291471,1737772246480,-150.0,0.00021918,2]
[350291473,1737772246489,-1000.0,0.00021918,2]
[350291475,1737772246498,-1000.0,0.00021918,2]
[350291477,1737772246507,-1000.0,0.00021918,2]
[350291479,1737772246516,-1000.0,0.00021918,2]
[350291481,1737772246526,-1000.0,0.00021918,2]
[350291483,1737772246535,-1000.0,0.00021918,2]
[350291485,1737772246544,-1000.0,0.00021918,2]
[350291487,1737772246555,-1000.0,0.00021918,2]
[350291489,1737772246564,-1000.0,0.00021918,2]
[350291491,1737772246573,-1000.0,0.00021918,2]
[350291493,1737772246582,-1000.0,0.00021918,2]
[350291495,1737772246591,-1000.0,0.00021918,2]
[350291497,1737772246600,-1000.0,0.00021918,2]
[350291499,1737772246609,-1000.0,0.00021918,2]
[350291501,1737772246618,-1000.0,0.00021918,2]
[350291503,1737772246627,-1000.0,0.00021918,2]
[350291505,1737772246635,-1000.0,0.00021918,2]
[350291507,1737772246645,-1000.0,0.00021918,2]
[350291509,1737772246653,-1000.0,0.00021918,2]
[350291511,1737772246662,-1071.0,0.00021918,2]
[350291513,1737772246671,-4224.76254423,0.00021937,2]
[350291515,1737772246680,-150.0,0.0002197,2]
[350291517,1737772246689,-199.22589811,0.00021973,4]
[350291519,1737772246698,-169.57426571,0.00021973,4]
[350291521,1737772246707,-167.8651235,0.00021973,4]
[350291523,1737772246716,-225.12569742,0.00021973,4]
[350291525,1737772246726,-150.0,0.00021988,2]
[350291527,1737772246739,-4499.1350235,0.0002199,2]
[350291529,1737772246748,-371.1730334,0.0002199,2]
[350291531,1737772246757,-887.3586509,0.0002199,2]
[350291533,1737772246767,-1295.8122201,0.0002199,2]
[350291535,1737772246776,-1149.0905949,0.0002199,2]
[350291537,1737772246786,-195852.52054821,0.0002199,14]
[350291539,1737772246795,-996.52607701,0.0002199,2]
[350291549,1737772246905,-119781.66780922,0.00021997,2]
[350291550,1737772246927,-500.0,0.00021998,2]
[350291551,1737772246936,-500.0,0.00021998,2]
[350291552,1737772246945,-500.0,0.00021998,2]
[350291553,1737772246955,-500.0,0.00021998,2]
[350291554,1737772246964,-500.0,0.00021998,2]
[350291555,1737772246973,-500.0,0.00021998,2]
[350291556,1737772246982,-500.0,0.00021998,2]
[350291557,1737772246991,-500.0,0.00021998,2]
[350291558,1737772247000,-500.0,0.00021998,2]
[350291559,1737772247009,-516.07915188,0.00021998,2]
[350291560,1737772247019,-500.0,0.00021998,2]
[350291561,1737772247028,-500.0,0.00021998,2]
[350291562,1737772247036,-500.0,0.00021998,2]
[350291563,1737772247045,-500.0,0.00021998,2]
[350291564,1737772247056,-525.9438927,0.00021998,2]
[350291565,1737772247066,-512.39265616,0.00021998,2]
[350291566,1737772247075,-500.0,0.00021998,2]
[350291567,1737772247084,-500.0,0.00021998,2]
[350291568,1737772247094,-500.0,0.00021998,2]
[350291569,1737772247103,-500.0,0.00021998,2]
[350291570,1737772247112,-500.0,0.00021998,2]
[350291571,1737772247121,-500.0,0.00021998,2]
[350291572,1737772247130,-588.99998749,0.00021998,2]
[350291573,1737772247140,-500.0,0.00021998,2]
[350291574,1737772247149,-500.0,0.00021998,2]
[350291576,1737772247158,-500.0,0.00021998,2]
[350291577,1737772247167,-500.0,0.00021998,2]
[350291578,1737772247176,-375.82147798,0.00021998,2]
[350291579,1737772247186,-500.0,0.00021998,2]
[350291580,1737772247196,-500.0,0.00021998,2]
[350291581,1737772247205,-500.0,0.00021998,2]
[350291582,1737772247214,-500.0,0.00021998,2]
[350291583,1737772247223,-510.76203886,0.00021998,2]
[350291584,1737772247233,-500.0,0.00021998,2]
[350291585,1737772247242,-500.0,0.00021998,2]
[350291586,1737772247251,-500.0,0.00021998,2]
[350291587,1737772247260,-184.70335746,0.00021998,2]
[350291588,1737772247270,-500.0,0.00021998,2]
[350291589,1737772247279,-500.0,0.00021998,2]
[350291590,1737772247289,-500.0,0.00021998,2]
[350291591,1737772247300,-500.0,0.00021998,2]
[350291592,1737772247309,-497.73528694,0.00021998,2]
[350291593,1737772247319,-500.0,0.00021998,2]
[350291594,1737772247329,-500.0,0.00021998,2]
[350291595,1737772247339,-500.0,0.00021998,2]
[350291596,1737772247348,-500.0,0.00021998,2]
[350291597,1737772247357,-500.0,0.00021998,2]
[350291598,1737772247366,-512.77916462,0.00021998,2]
[350291599,1737772247375,-500.0,0.00021998,2]
[350291600,1737772247384,-500.0,0.00021998,2]
[350291601,1737772247394,-500.0,0.00021998,2]
[350291602,1737772247403,-500.0,0.00021998,2]
[350291603,1737772247412,-500.0,0.00021998,2]
[350291604,1737772247421,-500.0,0.00021998,2]
[350291605,1737772247431,-500.0,0.00021998,2]
[350291606,1737772247440,-500.0,0.00021998,2]
[350291607,1737772247449,-500.0,0.00021998,2]
[350291608,1737772247460,-500.0,0.00021998,2]
[350291610,1737772247470,-500.0,0.00021998,2]
[350291611,1737772247479,-500.0,0.00021998,2]
[350291613,1737772247489,-500.0,0.00021998,2]
[350291616,1737772247500,-500.0,0.00021998,2]
[350291617,1737772247509,-500.0,0.00021998,2]
[350291619,1737772247519,-638.8,0.00021998,2]
[350291621,1737772247528,-500.0,0.00021998,2]
[350291623,1737772247538,-624.19,0.00021998,2]
[350291625,1737772247547,-500.0,0.00021998,2]
[350291628,1737772247560,-500.0,0.00021998,2]
[350291629,1737772247569,-500.0,0.00021998,2]
[350291631,1737772247579,-500.0,0.00021998,2]
[350291632,1737772247589,-500.0,0.00021998,2]
[350291633,1737772247598,-500.0,0.00021998,2]
[350291634,1737772247608,-500.0,0.00021998,2]
[350291635,1737772247619,-500.0,0.00021998,2]
[350291636,1737772247629,-694.18,0.00021998,2]
[350291637,1737772247638,-500.0,0.00021998,2]
[350291638,1737772247647,-500.0,0.00021998,2]
[350291639,1737772247658,-1360.83,0.00021998,2]
[350291640,1737772247667,-500.0,0.00021998,2]
[350291641,1737772247677,-500.0,0.00021998,2]
[350291642,1737772247687,-500.0,0.00021998,2]
[350291643,1737772247697,-500.0,0.00021998,2]
[350291644,1737772247707,-375.37907292,0.00021998,2]
[350291645,1737772247717,-500.0,0.00021998,2]
[350291646,1737772247727,-500.0,0.00021998,2]
[350291647,1737772247741,-500.0,0.00021998,2]
[350291648,1737772247751,-500.0,0.00021998,2]
[350291649,1737772247762,-748.36,0.00021998,2]
[350291650,1737772247771,-500.0,0.00021998,2]
[350291651,1737772247782,-500.0,0.00021998,2]
[350291652,1737772247792,-500.0,0.00021998,2]
[350291653,1737772247805,-500.0,0.00021998,2]
[350291654,1737772247815,-500.0,0.00021998,2]
[350291655,1737772247826,-500.0,0.00021998,2]
[350291656,1737772247835,-500.0,0.00021998,2]
[350291657,1737772247844,-647.26,0.00021998,2]
[350291658,1737772247854,-500.0,0.00021998,2]
[350291659,1737772247863,-500.0,0.00021998,2]
[350291660,1737772247874,-500.0,0.00021998,2]
[350291661,1737772247883,-327.34382214,0.00021998,2]
[350291662,1737772247893,-500.0,0.00021998,2]
[350291663,1737772247902,-500.0,0.00021998,2]
[350291664,1737772247913,-500.0,0.00021998,2]